Cogmind - Beta 15 @@@ ROGUE MODE // 2025.08.11 @ 20:23:44 Player: 7604 Result: Destroyed by EX-XVE(R) with Subdweller Laser Performance ------------- Evolutions (0) 0 Regions Visited (3) 600 Robots Destroyed (36) 180 Value Destroyed (966) 966 Prototype IDs (13) 260 Alien Tech Used (0) 0 Bonus (21) 21 TOTAL SCORE: 2027 Bonus ------- Follower Combat Kills 21 Cogmind --------- Core Integrity 0/250 Matter 272/300 Energy 150/150 System Corruption 0% Temperature Cool (6) Movement Treading (320) Ox2 Location -10/Subcaves Parts ------- > --- POWER (1) -------- Light Angular Momentum Engine > --- PROPULSION (2) --- Light Treads Improved Treads > --- UTILITY (2) ------ Huge Storage Unit Seismic Detector > --- WEAPON (2) ------- Subdweller Laser Subdweller Beam Cannon > --- INVENTORY (25) --- Ion Engine Subdweller Power Source Light Treads Light Treads Improved Treads Cargo Legs Improved Heat Sink High-capacity Matter Pod (200) Machine Analyzer Improved Terrain Scanner Seismic Detector Seismic Detector Medium Armor Plating Scrap Shield Hacking Suite Medium Laser Beam Cannon Battle Rifle Battle Cannon Grenade Launcher Rocket Launcher Datajack Peak State ------------ > --- POWER ------------ Light Angular Momentum Engine > --- PROPULSION ------- Improved Treads Improved Treads > --- UTILITY ---------- Huge Storage Unit Seismic Detector > --- WEAPON ----------- Beamcaster Subdweller Machine Gun > --- INVENTORY -------- Ion Engine Light Treads Light Treads Light Treads Light Treads Improved Treads Improved Treads Cargo Legs Improved Heat Sink Improved Heat Sink High-capacity Matter Pod Machine Analyzer Improved Terrain Scanner Seismic Detector Seismic Detector Medium Armor Plating Medium Armor Plating Medium Armor Plating Hacking Suite Medium Laser Beam Cannon Grenade Launcher Rocket Launcher Datajack [Rating: 23] Favorites ----------- Power Light Angular Momentum Engine Engine Light Angular Momentum Engine Propulsion Improved Treads Treads Improved Treads Utility Huge Storage Unit Device Seismic Detector Storage Huge Storage Unit Protection Medium Armor Plating Weapon Medium Laser Energy Gun Medium Laser Energy Cannon Beam Cannon Ballistic Gun Light Assault Rifle Ballistic Cannon Battle Cannon Build | -11 -10 -10 -10 ------- Run | Yrd Mat Min Sub Slots Evolved . | . . . . Power . | . . . . Propulsion . | . . . . Utility . | . . . . Weapon . | . . . . Parts Attached 29 | 7 6 5 11 Power 3 | 1 . 2 . Engine 3 | 1 . 2 . Core . | . . . . Reactor . | . . . . Propulsion 6 | 2 2 . 2 Treads 6 | 2 2 . 2 Leg . | . . . . Wheel . | . . . . Hover . | . . . . Flight . | . . . . Utility 9 | 2 3 3 1 Device 2 | 1 . 1 . Storage 3 | 1 2 . . Processor . | . . . . Hackware . | . . . . Protection 4 | . 1 2 1 Artifact . | . . . . Weapon 11 | 2 1 . 8 Energy Gun 4 | 1 1 . 2 Energy Cannon 2 | . . . 2 Ballistic Gun 4 | 1 . . 3 Ballistic Cannon 1 | . . . 1 Launcher . | . . . . Special Weapon . | . . . . Impact Weapon . | . . . . Slashing Weapon . | . . . . Piercing Weapon . | . . . . Special Melee Weapon . | . . . . Unidentified Prototypes . | . . . . Parts Lost 10 | . . 2 8 Power 1 | . . 1 . Propulsion 3 | . . . 3 Utility 3 | . . 1 2 Weapon 3 | . . . 3 Highest Loss Streak 3 | . . 2 3 To Critical Strikes . | . . . . Average Backups 19 | 1 12 21 22 Power 1 | . 1 . 1 Propulsion 4 | . 3 6 4 Utility 9 | . 6 9 10 Weapon 3 | . . 3 4 Tool/Special . | . . . . Unused Backups 16 | . . . 16 Power 1 | . . . 1 Propulsion 4 | . . . 4 Utility 8 | . . . 8 Weapon 2 | . . . 2 Tool/Special 1 | . . . 1 Average Slot Usage (%) 99 | . 100 100 98 Engine 14 | . 14 14 14 Treads 28 | . 28 28 28 Device 12 | . 13 11 11 Storage 14 | . 14 14 14 Protection 1 | . . 2 1 Energy Gun 10 | . 14 14 7 Ballistic Gun 14 | . 14 14 14 Ballistic Cannon 1 | . . . 3 Peak Build Rating 23 | 7 11 18 23 Average Rating 16 | 6 10 16 19 On Entrance 8 | . 7 11 17 Naked Turns . | . . . . Heaviest Build 106 | 13 89 99 106 Greatest Support 46 | 40 46 46 46 Greatest Overweight (x) 2 | . 1 2 2 Average Overweight (x) 1 | . . 2 2 Largest Inventory Capacity 25 | 8 25 25 25 Average Capacity 23 | 7 18 25 25 Most Carried 25 | 3 18 24 25 Average Carried 20 | 1 12 22 23 Final Capacity 25 | 8 25 25 25 Final Carried 24 | 3 18 24 24 Class Distribution -------------------- 100% | Mutant Dominant Class ---------------- Mutant | -10/Materials Mutant | -10/Mines Mutant | -10/Subcaves Resources | -11 -10 -10 -10 ----------- Run | Yrd Mat Min Sub Matter Collected 968 | 281 114 118 455 Remotely . | . . . . Salvage Created 1255 | 137 361 359 398 Parts 89 | 19 28 20 22 Haulers Intercepted 2 | . 2 . . Recyclers Shooed 1 | 1 . . . Parts Field Recycled . | . . . . Retrieved Matter . | . . . . Parts Self-Destructed 12 | . . . 12 Prevented . | . . . . Kills | -11 -10 -10 -10 ------- Run | Yrd Mat Min Sub Combat Hostiles Destroyed 25 | . 8 8 9 Guns 21 | . 8 8 5 Cannons 4 | . . . 4 Classes Destroyed 7 | 1 4 1 1 Tunneler 7 | 7 . . . Hauler 2 | . 2 . . Mechanic 1 | . . 1 . Watcher 1 | . 1 . . Swarmer 3 | . 3 . . Grunt 13 | . 5 8 . Subdweller 9 | . . . 9 Best Kill Streak 4 | 2 4 4 1 Combat Bots Only 4 | . 3 4 1 Max Kills in Single Turn 1 | 1 1 1 1 Gunslinging . | . . . . Exploded . | . . . . Melee . | . . . . Uniques/NPCs Destroyed . | . . . . Combat | -11 -10 -10 -10 -------- Run | Yrd Mat Min Sub Hostile Shots Fired 175 | . 34 64 77 Missed 44 | . 7 17 20 Hits 131 | . 27 47 57 Projectile 131 | . 27 47 57 Critical Strikes 3 | . . . 3 Damage Taken 2105 | . 274 571 1260 Core 267 | . 24 75 168 Absorbed by Shields . | . . . . Core Remaining (%) 100 | 100 . . . Volleys Fired 160 | 11 34 34 81 Largest 2 | 2 2 2 2 Hottest 110 | 60 70 70 110 Shots Fired 282 | 22 68 68 124 Gun 259 | 22 68 68 101 Cannon 23 | . . . 23 Launcher . | . . . . Special . | . . . . Kinetic 147 | 11 34 34 68 Thermal 135 | 11 34 34 56 Explosive . | . . . . Electromagnetic . | . . . . Robot Hit Streak 29 | 7 10 12 29 Robot Miss Streak 4 | 1 3 4 2 Penetration Max . | . . . . Secondary Targets 5 | . 2 3 . Max Gunslinging Chain 1 | . 1 1 . Shots Hit Robots 205 | 14 47 47 97 Core Hits 76 | 10 23 24 19 Critical Kills . | . . . . Critical Parts Destroyed . | . . . . Critical Strikes 6 | . 1 3 2 Burn 6 | . 1 3 2 Melee Attacks . | . . . . Impact . | . . . . Slashing . | . . . . Piercing . | . . . . Sneak Attacks . | . . . . Combat Hostiles . | . . . . Follow-up Attacks . | . . . . Damage Inflicted 3032 | 141 487 517 1887 Guns 2676 | 141 487 515 1533 Cannons 354 | . . . 354 Explosions . | . . . . Melee . | . . . . Ramming 2 | . . 2 . Kinetic 1510 | 32 195 189 1094 Thermal 1520 | 109 292 326 793 Explosive . | . . . . Electromagnetic . | . . . . Impact . | . . . . Slashing . | . . . . Piercing . | . . . . Highest Corruption . | . . . . Average Corruption . | . . . . Corruption Purged . | . . . . Corruption Blocked . | . . . . Overload Shots . | . . . . Overflow Damage . | . . . . Projectiles . | . . . . Explosions . | . . . . Melee . | . . . . Knockbacks 1 | . . . 1 Impact . | . . . . Kinetic 1 | . . . 1 Secondary . | . . . . Self-Inflicted Damage . | . . . . Shots . | . . . . Rammed 1 | . . 1 . Targets Rammed 1 | . . 1 . Kicked . | . . . . Crushed . | . . . . Highest Temperature 361 | 40 180 361 36 Average Temperature 78 | 16 38 129 12 Received Heat Transfer 669 | . 90 336 243 Effects 1 | . . 1 . Energy Bleed 1 | . . 1 . Siege Activations . | . . . . Martial Activations . | . . . . Shielding Activations . | . . . . Robots Disrupted . | . . . . Combat Hostiles . | . . . . Robots Corrupted . | . . . . Combat Hostiles . | . . . . Parts Fried . | . . . . Impact Corruptions . | . . . . Robots Melted . | . . . . Combat Hostiles . | . . . . Parts Melted 7 | . 1 5 1 Heat Transferred 3807 | 250 819 1184 1554 Parts Sabotaged . | . . . . Parts Stolen . | . . . . Parts Stripped . | . . . . Power Chain Reactions . | . . . . Alert | -11 -10 -10 -10 ------- Run | Yrd Mat Min Sub Maximum Alert Level . | . . . . Low Security (%) 100 | 100 100 100 . Level 1 . | . . . . Level 2 . | . . . . Level 3 . | . . . . Level 4 . | . . . . Level 5 . | . . . . High Security . | . . . . Max Security . | . . . . Peak Influence 77 | 10 77 52 . Initial 7 | . . 7 . Average 9 | . 12 7 . Influence Increases 648 | 35 313 300 . Destroy 0b10 Robot/C 380 | . 160 220 . Destroy 0b10 Robot/NC 55 | 35 15 5 . Destroy Leader 96 | . 56 40 . Allied During Kill 5 | . . 5 . Successful Hack 22 | . 22 . . Select Force Hacks 60 | . 60 . . Lose Combat Pursuer 30 | . . 30 . Influence Decreases 648 | 35 293 320 . Entered New Map 13 | . . 13 . Time Decay 600 | 35 293 272 . Lost Part 20 | . . 20 . Lost Ally 15 | . . 15 . Squads Dispatched 6 | . 5 1 . Investigation 3 | . 3 . . Extermination . | . . . . Reinforcement 2 | . 2 . . Assault 1 | . . 1 . Garrison . | . . . . Intercept . | . . . . Searches Triggered . | . . . . Construction Impeded . | . . . . Haulers Reinforced . | . . . . Active Scanning Responses . | . . . . Cargo Convoy Interrupts . | . . . . Stealth | -11 -10 -10 -10 --------- Run | Yrd Mat Min Sub Distress Signals . | . . . . Communications Jammed . | . . . . Distress Signals . | . . . . Times Spotted 39 | . 15 14 10 Peak Tracking Total 4 | . 4 4 2 Tactical Retreats 2 | . . 2 . Traps | -11 -10 -10 -10 ------- Run | Yrd Mat Min Sub Traps Triggered 3 | . 2 . 1 Indirectly . | . . . . Trap Hack Attempts . | . . . . Triggered . | . . . . Disarmed . | . . . . Reprogrammed . | . . . . Reused . | . . . . Traps Extracted . | . . . . Installed . | . . . . Triggered . | . . . . Machines | -11 -10 -10 -10 ---------- Run | Yrd Mat Min Sub Machines Disabled 1 | . . . 1 Max in Single Turn 1 | . . . 1 Machines Repaired . | . . . . Machines Dismantled . | . . . . Machines Sabotaged . | . . . . Overloaded Fab Kills . | . . . . Hacking | -11 -10 -10 -10 --------- Run | Yrd Mat Min Sub Machines Accessed 9 | . 7 . 2 Terminals 5 | . 5 . . Fabricators . | . . . . Repair Stations . | . . . . Recycling Units 2 | . 2 . . Scanalyzers . | . . . . Garrison Access . | . . . . Total Hacks 25 | . 20 . 5 Successful 16 | . 11 . 5 Failed 9 | . 9 . . Catastrophic . | . . . . Database Lockouts . | . . . . Manual 16 | . 16 . . Terminals 16 | . 16 . . Fabricators . | . . . . Repair Stations . | . . . . Recycling Units 4 | . 4 . . Scanalyzers . | . . . . Garrison Access . | . . . . Terminal Hacks 7 | . 2 . 5 Record 4 | . . . 4 Robot Analysis 1 | . 1 . . Prototype ID Bank 1 | . 1 . . Proto ID Catalog 1 | . . . 1 Fabricator Hacks . | . . . . Repair Station Hacks . | . . . . Recycling Unit Hacks 2 | . 2 . . Retrieve Components 2 | . 2 . . Scanalyzer . | . . . . Garrison Access Hacks . | . . . . Unauthorized Hacks 7 | . 7 . . Terminals 5 | . 5 . . Botnet 1 | . 1 . . Operators 1 | . 1 . . Skim 3 | . 3 . . Fabricators . | . . . . Repair Stations . | . . . . Recycling Units 2 | . 2 . . Tunnel 2 | . 2 . . Scanalyzers . | . . . . Garrison Access . | . . . . Data Cores Recovered . | . . . . Used . | . . . . Hacking Detections 6 | . 6 . . Full Trace Events . | . . . . Feedback Events . | . . . . Feedback Blocked . | . . . . Robot Schematics Acquired . | . . . . Robots Built . | . . . . Authchips . | . . . . Time . | . . . . Total Robot Build Rating . | . . . . Part Schematics Acquired . | . . . . Parts Built . | . . . . Authchips . | . . . . Time . | . . . . Total Part Build Rating . | . . . . Parts Repaired . | . . . . Time . | . . . . Parts Recycled . | . . . . Recycled Matter . | . . . . Retrieved Matter . | . . . . Retrieved Components 13 | . 13 . . Parts Scanalyzed . | . . . . Part Schematics Acquired . | . . . . Parts Damaged . | . . . . Bothacking | -11 -10 -10 -10 ------------ Run | Yrd Mat Min Sub Used RIF Installer . | . . . . Robots Hacked . | . . . . Non-combat . | . . . . Combat . | . . . . Robot Hacks Applied . | . . . . Relay Couplers Released . | . . . . Fabnet Peak Effective % . | . . . . Robots Rewired . | . . . . Allies Hacked . | . . . . Hacks Repelled . | . . . . Allies | -11 -10 -10 -10 -------- Run | Yrd Mat Min Sub Total Allies 4 | . . 4 . Largest Group 3 | . . 3 . Highest-Rated Group 40 | . . 40 . Highest-Rated Ally 31 | . . 31 . Total Orders . | . . . . Ally Attacks 21 | . . 21 . Total Damage 135 | . . 135 . Kills 3 | . . 3 . Allies Corrupted . | . . . . Allies Melted . | . . . . Intel | -11 -10 -10 -10 ------- Run | Yrd Mat Min Sub Active Infowar (turns) 8261 | 148 2114 2186 3813 Seismic 8261 | 148 2114 2186 3813 Robot Analysis Total 1 | . 1 . . Derelict Logs Recovered 2 | . . 1 1 Drone Launches . | . . . . Drone Recoveries . | . . . . Exploration | -11 -10 -10 -10 ------------- Run | Yrd Mat Min Sub Turns Passed 9690 | 267 2138 2561 4724 Spaces Moved 3042 | 143 801 751 1347 Core 8 | 8 . . . Treads 3034 | 135 801 751 1347 Legs . | . . . . Wheels . | . . . . Hover . | . . . . Flight . | . . . . Fastest Speed 50 | 50 160 320 320 Average Speed 279 | 153 194 320 320 Slowest Speed 320 | 160 240 320 320 Overloaded Moves . | . . . . Propulsion Burnouts . | . . . . Robots Hopped . | . . . . Potential Cave-ins . | . . . . Cave-ins Triggered . | . . . . Exploration Rate (%) 71 | 8 99 99 80 Regions Visited 3 Branch Regions 2 Pre-discovered Areas 2 | . 2 . . Known Exits Taken . | . . . . Unknown Exits Taken 3 | 1 1 1 . Scrap Searched 7 | . . 1 6 Spaces Dug 1 | . . . 1 Terrain Destroyed 2 | . . . 2 Melee . | . . . . Projectile 2 | . . . 2 AOE . | . . . . Terrain Rammed . | . . . . Walls Destroyed . | . . . . Machines Disabled . | . . . . Actions | -11 -10 -10 -10 --------- Run | Yrd Mat Min Sub Total 3961 | 167 1318 844 1632 Wait 664 | 4 458 43 159 Move 3039 | 142 800 750 1347 Hop . | . . . . Pick Up 31 | 3 14 7 7 Fast Attach 11 | 7 2 . 2 Attach 12 | . . 2 10 Detach 4 | . . . 4 Swap 32 | . 6 7 19 Drop 7 | . 4 . 3 Fire 160 | 11 34 34 81 Melee . | . . . . Ram . | . . . . Kick . | . . . . Crush 1 | . . 1 . Escape Stasis . | . . . . Rewire . | . . . . Trap . | . . . . Miscellaneous . | . . . . Route ------- -11/Scrapyard -10/Materials (discovered 5 exits: [*Mat x3] / [*Min] / *Sub) -10/Mines (discovered 4 exits: [*Mat x2] / [*Exi] / *Sub) -10/Subcaves (discovered 3 exits: Mat x2 / Rec) History --------- Turn | Location | Event 5 | -11/Scrapyard | Discovered new exit (range 15) 268 | -11/Scrapyard | Entered Materials 307 | -10/Materials | Build established: Mutant 387 | -10/Materials | Discovered new exit (range 6) 516 | -10/Materials | Discovered new exit (range 10) 603 | -10/Materials | Discovered new exit (range 16) 968 | -10/Materials | Derelicts attacked the area 1025 | -10/Materials | Discovered new exit (range 14) 1321 | -10/Materials | Discovered new exit (range 15) 2406 | -10/Materials | Entered Mines 2463 | -10/Mines | Deemed a non-threat by the Exiles lab entrance 2463 | -10/Mines | Discovered new exit (range 5) 2522 | -10/Mines | Met a Derelict testing a Signal Generator 2543 | -10/Mines | Found Signal Generator 2579 | -10/Mines | Discovered new exit (range 8) 2805 | -10/Mines | Found a Scrap Suit stashed away for nefarious purposes 2805 | -10/Mines | Discovered new exit (range 10) 2870 | -10/Mines | Assisted by bots powering up and referring to "LRC-V3" 3183 | -10/Mines | Received a Rocket Launcher from a helpful Derelict 3382 | -10/Mines | Learned location of 1 exit from Materials 3905 | -10/Mines | Discovered new exit (range 7) 4967 | -10/Mines | Entered Subcaves 4968 | -10/Subcaves | Approached by a straggling Scientist 5199 | -10/Subcaves | Shifting Twisted Machinery released Sub. Optics 5224 | -10/Subcaves | Shifting Twisted Machinery released Sub. Machine Gun 5549 | -10/Subcaves | Visited 4L-MR0's lab 5582 | -10/Subcaves | Found Cargo Legs 5840 | -10/Subcaves | Core integrity fell below 50% 6803 | -10/Subcaves | Visited Clippyterm 6813 | -10/Subcaves | Identified exit to Materials 6813 | -10/Subcaves | Identified exit to Recycling 7469 | -10/Subcaves | Learned Materials garrison access intel 7584 | -10/Subcaves | Disturbed a concealed Subdweller 7863 | -10/Subcaves | Disturbed a concealed Subdweller 7930 | -10/Subcaves | Lost 3 parts (3w) 8365 | -10/Subcaves | Core integrity fell below 20% 9564 | -10/Subcaves | Shifting Twisted Machinery released Sub. Laser 9691 | -10/Subcaves | Shifting Twisted Machinery released Sub. Laser 9691 | -10/Subcaves | Destroyed by EX-XVE(R) with Subdweller Laser Last Messages --------------- 08397_ Acquired 7 matter. 08400_ Acquired 56 matter. 08407_ Acquired 3 matter. 08564_ Acquired 53 matter. 08711_ Acquired 21 matter. 09469_ 8Z-POP(R) destroyed. 09476_ Acquired 34 matter. 09480_ Acquired 3 matter. 09503_ Acquired 2 matter. Sub. Laser falls loose from the Twisted Machinery. 09586_ 7M-USC(R) destroyed. 09589_ Acquired 30 matter. 09596_ Acquired Sub. Beam Cannon. 09597_ Acquired 3 matter. 09604_ Acquired Sub. Laser. 09617_ Acquired 9 matter. 09651_ Acquired 15 matter. Sub. Laser falls loose from the Twisted Machinery. Map ----- +----------------------------------------------------+ | ##????????????????????# #?## ##? | | ###?????????????????????### #?# ## | | ##??????????????????????#### ## ##?# # | | #???????????????????????# #### #### | | #???????????????????##### #### ## | | ????????????????????# % ## ## # | | ????????????????????## &!## #?### | | ?????????????????????### & ### ### ##??? | | #?????????????????????## = ##### %##?# ##?? | | #????????????????????## ##?#####??# ## |%= ##? | | #??????????????????### " "#????????#### #? | | #####??????????????#" ##" "##?????????## ###? | | ?# ##?????????????#" ### "" #????????## ##??? | | ?# #?????????????# "####" " #?????#### #???? | | ?# #?????????????# "%####"""#?????#% ###?? | | ## #??????????????#" ""#?#""##?????## ### | | #??????????????### "###""#???????## # | | #????????????????# ""##" ####?????## # | | ##????????????????# ""##"# #"######### ## | | ########???????????# "" #?### ## | | ###?# #???????????# "" #?## # | | ????## ##???????????# ### """ ## ## | | ?????# ####?????????#""### ###"""#?# | | ???### #??# "##"# # # ##?????# | | ??## ##??#""[ # """ #?????# | | ?## ###???#R @ """ #?????# # | | ## #????????###### ## """ #???# ## ## # | | # ####?????????????#### ## ##???#"" &#?###?## | | #???????????????????###?####???## " %####???? | | #??????????????????????????????# ##??? | | #?????????????????????????????# #??? | | " #?????????????????????????????# % ###? | | """ #????????????????????????????# #? | | ""### #????????????????????????????# % ## | | ####??##????????????????????????????# # | | ????????????????????????????????????# % ## | | ????????????????????????????????????## ## ##? | | ?????????????????????????????????????###?### ##? | | ??????????????????????????????????????##???# #? | | ?###?????????????????????????????????##%#??# ## | | ?# ##???????????????????????????????## % #?# # | | ?# #???????????????????????????????# ## ## | | ?# #???????????????????????????????# ##? | | ## #???????????????????????????????## % ##?? | | # #????????????????????????????????###### ##??? | | # #?????????????????????????????????###?# #???? | | # #?????##########???????????????#### #?# #???? | | #?????# #??????????????## #?# #???? | | #?????# ##### #?????????????## ### #???? | | #?????# #"%"## #?????????????# ## #???? | +----------------------------------------------------+ Best States ------------- Heat Dissipation 25 Energy Generation 18 Energy Capacity 250 Matter Stores 300 Matter Capacity 300 Sight Range 16 Terrain Scan Density 10 Armor Coverage 225 Evasion (%) 40 Recoil Reduction 2 Item Schematics ----------------- None Robot Schematics ------------------ None Fabricated ------------ Nothing Repaired ---------- Nothing Alien Tech Used ----------------- None Achievements -------------- None Challenges ------------ None Game ------ Seed MultitargetingBraceArray Manual? 0 Play Time 00:29:54 Cumulative 551.1 hours Start 2025.08.11 @ 19:55:12 End 2025.08.11 @ 20:23:44 Sessions 1 Manual Loads 0 Difficulty Rogue Special Mode None Game No. 284 Rogue 221 Adventurer 63 Explorer 0 Win Type - Total 10 Types 8/0/0/1/0/0/1/0/0/0 Lore% 91 Gallery% 84 Achievement% 69 Wizard Run 0 Options --------- Layout 1 ASCII 0 Keyboard 1 Movement Numpad Keybinds 0 Fullscreen 2 Font 24/Terminus Map View 50x35 Zoom Use 0% Tactical HUD 1 Map Filters NONE Filters NONE Steam 1 RUN: 295f1e6c-5cf4-48c0-adea-8243319bc1ac